[Event "Titled Tuesday Blitz July 11 Early 2023"]
[White "Lopez Idarraga, Daniel Eduardo"]
[Black "Ganiev, Roman"]
[WhiteFideId "4405501"]
[BlackFideId "4131452"]
[WhiteElo "2301"]
[BlackElo "2579"]
[Result "1-0"]
[Round "1"]
[TimeControl "180+2"]
[Date "2023.07.11"]
[WhiteClock "0:00:17"]
[BlackClock "0:00:08"]
[Board "159"]

1. e4 {[%clk 0:03:00]}  c5 {[%clk 0:02:59]} 2. Nf3 {[%clk 0:03:01]}  d6 {[%clk 0:03:00]} 3. Bb5+ {[%clk 0:03:00]}  Bd7 {[%clk 0:02:59]} 4. c4 {[%clk 0:02:58]}  a6 {[%clk 0:02:58]} 5. Bxd7+ {[%clk 0:02:58]}  Qxd7 {[%clk 0:02:57]} 6. Nc3 {[%clk 0:02:59]}  Nc6 {[%clk 0:02:56]} 7. O-O {[%clk 0:02:58]}  e6 {[%clk 0:02:37]} 8. d4 {[%clk 0:02:56]}  cxd4 {[%clk 0:02:37]} 9. Nxd4 {[%clk 0:02:57]}  Nf6 {[%clk 0:02:38]} 10. b3 {[%clk 0:02:56]}  Be7 {[%clk 0:02:38]} 11. Bb2 {[%clk 0:02:57]}  O-O {[%clk 0:02:38]} 12. Qd2 {[%clk 0:02:57]}  Nxd4 {[%clk 0:02:26]} 13. Qxd4 {[%clk 0:02:55]}  Qc6 {[%clk 0:02:27]} 14. a4 {[%clk 0:02:50]}  Rfd8 {[%clk 0:02:11]} 15. a5 {[%clk 0:02:45]}  Rac8 {[%clk 0:02:09]} 16. Na4 {[%clk 0:02:37]}  Qxe4 {[%clk 0:02:03]} 17. Nb6 {[%clk 0:02:32]}  Qxd4 {[%clk 0:01:59]} 18. Bxd4 {[%clk 0:02:31]}  Rc6 {[%clk 0:02:00]} 19. Rfe1 {[%clk 0:02:30]}  Nd7 {[%clk 0:01:50]} 20. Nd5 {[%clk 0:02:17]}  Bf8 {[%clk 0:01:37]} 21. Nc3 {[%clk 0:02:00]}  Nc5 {[%clk 0:01:34]} 22. Rab1 {[%clk 0:01:50]}  Rdc8 {[%clk 0:01:09]} 23. Kf1 {[%clk 0:01:46]}  g6 {[%clk 0:01:08]} 24. Red1 {[%clk 0:01:38]}  Nd7 {[%clk 0:00:59]} 25. Ne4 {[%clk 0:01:35]}  f5 {[%clk 0:00:50]} 26. Ng5 {[%clk 0:01:30]}  e5 {[%clk 0:00:50]} 27. Be3 {[%clk 0:01:28]}  h6 {[%clk 0:00:50]} 28. Nf3 {[%clk 0:01:24]}  f4 {[%clk 0:00:46]} 29. Bc1 {[%clk 0:01:21]}  g5 {[%clk 0:00:47]} 30. Ba3 {[%clk 0:01:18]}  Kf7 {[%clk 0:00:44]} 31. h3 {[%clk 0:01:00]}  Ke6 {[%clk 0:00:44]} 32. Nd2 {[%clk 0:00:57]}  d5 {[%clk 0:00:32]} 33. cxd5+ {[%clk 0:00:51]}  Kxd5 {[%clk 0:00:30]} 34. Nf3+ {[%clk 0:00:41]}  Ke6 {[%clk 0:00:29]} 35. Bxf8 {[%clk 0:00:40]}  Rxf8 {[%clk 0:00:28]} 36. Rxd7 {[%clk 0:00:39]}  Kxd7 {[%clk 0:00:26]} 37. Nxe5+ {[%clk 0:00:39]}  Kc7 {[%clk 0:00:27]} 38. Nxc6 {[%clk 0:00:38]}  Kxc6 {[%clk 0:00:28]} 39. Re1 {[%clk 0:00:37]}  Rf5 {[%clk 0:00:25]} 40. Re6+ {[%clk 0:00:36]}  Kb5 {[%clk 0:00:23]} 41. Rb6+ {[%clk 0:00:36]}  Kxa5 {[%clk 0:00:23]} 42. Rxb7 {[%clk 0:00:36]}  Rb5 {[%clk 0:00:21]} 43. Rh7 {[%clk 0:00:37]}  Rxb3 {[%clk 0:00:21]} 44. Rxh6 {[%clk 0:00:38]}  Rb5 {[%clk 0:00:21]} 45. h4 {[%clk 0:00:36]}  g4 {[%clk 0:00:20]} 46. Rf6 {[%clk 0:00:36]}  g3 {[%clk 0:00:18]} 47. Rxf4 {[%clk 0:00:35]}  Rb1+ {[%clk 0:00:18]} 48. Ke2 {[%clk 0:00:35]}  Rb2+ {[%clk 0:00:19]} 49. Ke3 {[%clk 0:00:35]}  Rb3+ {[%clk 0:00:17]} 50. Ke2 {[%clk 0:00:31]}  Rb2+ {[%clk 0:00:18]} 51. Kd3 {[%clk 0:00:26]}  gxf2 {[%clk 0:00:15]} 52. g4 {[%clk 0:00:23]}  Kb5 {[%clk 0:00:13]} 53. h5 {[%clk 0:00:23]}  a5 {[%clk 0:00:12]} 54. h6 {[%clk 0:00:23]}  Rb3+ {[%clk 0:00:11]} 55. Ke2 {[%clk 0:00:23]}  Rh3 {[%clk 0:00:12]} 56. Rf5+ {[%clk 0:00:22]}  Kb4 {[%clk 0:00:12]} 57. Rh5 {[%clk 0:00:23]}  Rb3 {[%clk 0:00:08]} 58. h7 {[%clk 0:00:22]}  Rb2+ {[%clk 0:00:08]} 59. Kf1 {[%clk 0:00:23]}  a4 {[%clk 0:00:06]} 60. h8=Q {[%clk 0:00:21]}  a3 {[%clk 0:00:07]} 61. Qd4+ {[%clk 0:00:20]}  Kb3 {[%clk 0:00:07]} 62. Rb5+ {[%clk 0:00:19]}  Ka2 {[%clk 0:00:08]} 63. Qd5+ {[%clk 0:00:19]}  Ka1 {[%clk 0:00:08]} 64. Ra5 {[%clk 0:00:19]}  a2 {[%clk 0:00:08]} 65. Qd4 {[%clk 0:00:17]}  Kb1 {[%clk 0:00:08]} 66. Qd1# {[%clk 0:00:17]} 1-0


[Site "https://www.chess.com"]

[Event "Titled Tuesday Blitz July 11 Early 2023"]
[White "Lana Rodriguez, David"]
[Black "Vifleemskaia, Svetlana"]
[WhiteFideId "2270803"]
[BlackFideId "4129490"]
[WhiteElo "2578"]
[BlackElo "2301"]
[Result "1-0"]
[Round "1"]
[TimeControl "180+2"]
[Date "2023.07.11"]
[WhiteClock "0:01:02"]
[BlackClock "0:00:00"]
[Board "160"]

1. e4 {[%clk 0:03:00]}  e5 {[%clk 0:02:59]} 2. Nf3 {[%clk 0:02:59]}  Nc6 {[%clk 0:02:59]} 3. Bb5 {[%clk 0:02:59]}  a6 {[%clk 0:02:59]} 4. Bxc6 {[%clk 0:02:59]}  dxc6 {[%clk 0:02:59]} 5. O-O {[%clk 0:03:00]}  Ne7 {[%clk 0:02:58]} 6. Nxe5 {[%clk 0:02:55]}  Qd4 {[%clk 0:02:57]} 7. Qh5 {[%clk 0:02:54]}  g6 {[%clk 0:02:55]} 8. Qg5 {[%clk 0:02:53]}  Bg7 {[%clk 0:02:53]} 9. Nf3 {[%clk 0:02:46]}  Qxe4 {[%clk 0:02:52]} 10. Re1 {[%clk 0:02:45]}  Qb4 {[%clk 0:02:43]} 11. b3 {[%clk 0:02:41]}  h6 {[%clk 0:02:28]} 12. Qe3 {[%clk 0:02:34]}  Be6 {[%clk 0:02:07]} 13. Ba3 {[%clk 0:02:34]}  Qa5 {[%clk 0:02:04]} 14. c3 {[%clk 0:02:26]}  Nd5 {[%clk 0:01:47]} 15. Qe2 {[%clk 0:02:19]}  O-O-O {[%clk 0:01:33]} 16. Nd4 {[%clk 0:02:18]}  Bxd4 {[%clk 0:01:27]} 17. cxd4 {[%clk 0:02:18]}  Nf4 {[%clk 0:01:24]} 18. Qf3 {[%clk 0:02:15]}  Qf5 {[%clk 0:00:40]} 19. Re5 {[%clk 0:01:56]}  Qf6 {[%clk 0:00:20]} 20. Nc3 {[%clk 0:01:29]}  Nh3+ {[%clk 0:00:15]} 21. Kf1 {[%clk 0:01:28]}  Qxf3 {[%clk 0:00:14]} 22. gxf3 {[%clk 0:01:29]}  Rxd4 {[%clk 0:00:14]} 23. Ne4 {[%clk 0:01:26]}  Rhd8 {[%clk 0:00:12]} 24. Bb2 {[%clk 0:01:24]}  R4d5 {[%clk 0:00:12]} 25. d4 {[%clk 0:01:20]}  Rxe5 {[%clk 0:00:10]} 26. dxe5 {[%clk 0:01:21]}  Bf5 {[%clk 0:00:07]} 27. Bc3 {[%clk 0:01:13]}  b6 {[%clk 0:00:07]} 28. Re1 {[%clk 0:01:11]}  Rd3 {[%clk 0:00:06]} 29. Re3 {[%clk 0:01:09]}  Rd1+ {[%clk 0:00:04]} 30. Ke2 {[%clk 0:01:09]}  Ra1 {[%clk 0:00:00]} 31. Bxa1 {[%clk 0:01:02]} 1-0


[Site "https://www.chess.com"]

[Event "Titled Tuesday Blitz July 11 Early 2023"]
[White "Ardila, Oscar Humberto"]
[Black "Shohat, Yotam"]
[WhiteFideId "4404742"]
[BlackFideId "2813955"]
[WhiteElo "2300"]
[BlackElo "2577"]
[Result "0-1"]
[Round "1"]
[TimeControl "180+2"]
[Date "2023.07.11"]
[WhiteClock "0:00:13"]
[BlackClock "0:00:07"]
[Board "161"]

1. d4 {[%clk 0:02:57]}  Nf6 {[%clk 0:02:45]} 2. c4 {[%clk 0:02:57]}  g6 {[%clk 0:02:44]} 3. Nc3 {[%clk 0:02:57]}  Bg7 {[%clk 0:02:43]} 4. e4 {[%clk 0:02:56]}  O-O {[%clk 0:02:43]} 5. Nf3 {[%clk 0:02:56]}  d6 {[%clk 0:02:43]} 6. Be2 {[%clk 0:02:57]}  c5 {[%clk 0:02:43]} 7. d5 {[%clk 0:02:57]}  Bg4 {[%clk 0:02:42]} 8. h3 {[%clk 0:02:56]}  Bxf3 {[%clk 0:02:41]} 9. Bxf3 {[%clk 0:02:57]}  Nbd7 {[%clk 0:02:40]} 10. O-O {[%clk 0:02:57]}  a6 {[%clk 0:02:33]} 11. Bf4 {[%clk 0:02:57]}  Ne8 {[%clk 0:02:23]} 12. Qd2 {[%clk 0:02:54]}  Nc7 {[%clk 0:02:16]} 13. Rfe1 {[%clk 0:02:53]}  b5 {[%clk 0:02:14]} 14. cxb5 {[%clk 0:02:38]}  axb5 {[%clk 0:02:14]} 15. a3 {[%clk 0:02:34]}  Nb6 {[%clk 0:02:02]} 16. Be2 {[%clk 0:02:27]}  Nc4 {[%clk 0:01:51]} 17. Qc1 {[%clk 0:02:21]}  Qb8 {[%clk 0:01:35]} 18. Rb1 {[%clk 0:02:08]}  Ne5 {[%clk 0:01:26]} 19. Bg5 {[%clk 0:02:00]}  Re8 {[%clk 0:01:20]} 20. f4 {[%clk 0:01:59]}  h6 {[%clk 0:01:17]} 21. fxe5 {[%clk 0:01:45]}  hxg5 {[%clk 0:01:16]} 22. exd6 {[%clk 0:01:45]}  exd6 {[%clk 0:01:17]} 23. Qxg5 {[%clk 0:01:45]}  b4 {[%clk 0:01:09]} 24. axb4 {[%clk 0:01:43]}  cxb4 {[%clk 0:01:10]} 25. Nd1 {[%clk 0:01:43]}  Qb6+ {[%clk 0:01:05]} 26. Nf2 {[%clk 0:01:36]}  Bd4 {[%clk 0:01:03]} 27. Rf1 {[%clk 0:01:35]}  Rxe4 {[%clk 0:01:01]} 28. Bf3 {[%clk 0:01:32]}  Re5 {[%clk 0:01:01]} 29. Qh6 {[%clk 0:01:29]}  Rae8 {[%clk 0:00:53]} 30. Qh4 {[%clk 0:01:23]}  Nxd5 {[%clk 0:00:40]} 31. Rbd1 {[%clk 0:01:14]}  Ne3 {[%clk 0:00:40]} 32. Qxd4 {[%clk 0:01:11]}  Qxd4 {[%clk 0:00:39]} 33. Rxd4 {[%clk 0:01:11]}  Nxf1 {[%clk 0:00:40]} 34. Ng4 {[%clk 0:01:08]}  Ne3 {[%clk 0:00:11]} 35. Nf6+ {[%clk 0:01:05]}  Kg7 {[%clk 0:00:11]} 36. Nxe8+ {[%clk 0:01:05]}  Rxe8 {[%clk 0:00:11]} 37. Rxd6 {[%clk 0:01:05]}  Nc4 {[%clk 0:00:09]} 38. Rd4 {[%clk 0:01:02]}  Nxb2 {[%clk 0:00:08]} 39. Rxb4 {[%clk 0:01:02]}  Nd3 {[%clk 0:00:09]} 40. Rb7 {[%clk 0:01:02]}  Ne5 {[%clk 0:00:09]} 41. Bd5 {[%clk 0:01:01]}  Rd8 {[%clk 0:00:10]} 42. Bb3 {[%clk 0:01:00]}  Rd2 {[%clk 0:00:10]} 43. Kf1 {[%clk 0:00:57]}  g5 {[%clk 0:00:10]} 44. Rb5 {[%clk 0:00:52]}  f6 {[%clk 0:00:06]} 45. Rb7+ {[%clk 0:00:51]}  Kh6 {[%clk 0:00:06]} 46. Bg8 {[%clk 0:00:49]}  Nd3 {[%clk 0:00:04]} 47. Re7 {[%clk 0:00:36]}  Nf4 {[%clk 0:00:04]} 48. g3 {[%clk 0:00:30]}  Nd3 {[%clk 0:00:03]} 49. Bc4 {[%clk 0:00:27]}  Ne5 {[%clk 0:00:03]} 50. Bg8 {[%clk 0:00:24]}  Rh2 {[%clk 0:00:03]} 51. Kg1 {[%clk 0:00:22]}  Nf3+ {[%clk 0:00:03]} 52. Kf1 {[%clk 0:00:21]}  Kg6 {[%clk 0:00:03]} 53. h4 {[%clk 0:00:20]}  gxh4 {[%clk 0:00:03]} 54. gxh4 {[%clk 0:00:20]}  Nxh4 {[%clk 0:00:04]} 55. Rh7 {[%clk 0:00:20]}  Kg5 {[%clk 0:00:04]} 56. Be6 {[%clk 0:00:20]}  Kf4 {[%clk 0:00:04]} 57. Rg7 {[%clk 0:00:19]}  Nf3 {[%clk 0:00:04]} 58. Bd5 {[%clk 0:00:18]}  Ke3 {[%clk 0:00:04]} 59. Bxf3 {[%clk 0:00:17]}  Kxf3 {[%clk 0:00:05]} 60. Ke1 {[%clk 0:00:18]}  Rh1+ {[%clk 0:00:05]} 61. Kd2 {[%clk 0:00:18]}  f5 {[%clk 0:00:06]} 62. Rf7 {[%clk 0:00:18]}  f4 {[%clk 0:00:06]} 63. Rf6 {[%clk 0:00:17]}  Rf1 {[%clk 0:00:06]} 64. Rf7 {[%clk 0:00:17]}  Rf2+ {[%clk 0:00:06]} 65. Ke1 {[%clk 0:00:17]}  Ra2 {[%clk 0:00:06]} 66. Rb7 {[%clk 0:00:16]}  Ra1+ {[%clk 0:00:06]} 67. Kd2 {[%clk 0:00:17]}  Kf2 {[%clk 0:00:06]} 68. Rf7 {[%clk 0:00:16]}  f3 {[%clk 0:00:06]} 69. Rf6 {[%clk 0:00:15]}  Ra8 {[%clk 0:00:06]} 70. Rf7 {[%clk 0:00:15]}  Rd8+ {[%clk 0:00:06]} 71. Kc1 {[%clk 0:00:14]}  Ke2 {[%clk 0:00:07]} 72. Re7+ {[%clk 0:00:14]}  Kf1 {[%clk 0:00:07]} 73. Rf7 {[%clk 0:00:14]}  f2 {[%clk 0:00:08]} 74. Rf6 {[%clk 0:00:14]}  Rg8 {[%clk 0:00:07]} 75. Kd2 {[%clk 0:00:14]}  Kg1 {[%clk 0:00:06]} 76. Ke2 {[%clk 0:00:15]}  Re8+ {[%clk 0:00:05]} 77. Kd3 {[%clk 0:00:14]}  f1=Q+ {[%clk 0:00:06]} 78. Rxf1+ {[%clk 0:00:13]}  Kxf1 {[%clk 0:00:07]} 0-1


[Site "https://www.chess.com"]

[Event "Titled Tuesday Blitz July 11 Early 2023"]
[White "Geivondian, Arman"]
[Black "Vaglio Munoz, Jaime"]
[WhiteFideId "24102032"]
[BlackFideId "6500145"]
[WhiteElo "2577"]
[BlackElo "2297"]
[Result "1-0"]
[Round "1"]
[TimeControl "180+2"]
[Date "2023.07.11"]
[WhiteClock "0:02:16"]
[BlackClock "0:00:22"]
[Board "162"]

1. e4 {[%clk 0:03:00]}  c5 {[%clk 0:02:47]} 2. Nf3 {[%clk 0:03:01]}  Qa5 {[%clk 0:02:39]} 3. Nc3 {[%clk 0:02:59]}  a6 {[%clk 0:02:38]} 4. a3 {[%clk 0:02:58]}  e6 {[%clk 0:02:37]} 5. d4 {[%clk 0:02:58]}  b5 {[%clk 0:02:34]} 6. Bd2 {[%clk 0:02:57]}  Qc7 {[%clk 0:02:28]} 7. d5 {[%clk 0:02:52]}  Bb7 {[%clk 0:02:26]} 8. Bg5 {[%clk 0:02:50]}  h6 {[%clk 0:02:12]} 9. Bh4 {[%clk 0:02:49]}  Qb6 {[%clk 0:02:04]} 10. Be2 {[%clk 0:02:43]}  g5 {[%clk 0:02:03]} 11. Bg3 {[%clk 0:02:43]}  Bg7 {[%clk 0:02:02]} 12. O-O {[%clk 0:02:42]}  Ne7 {[%clk 0:02:00]} 13. dxe6 {[%clk 0:02:42]}  dxe6 {[%clk 0:01:58]} 14. Qd6 {[%clk 0:02:43]}  Qxd6 {[%clk 0:01:57]} 15. Bxd6 {[%clk 0:02:44]}  Nd7 {[%clk 0:01:56]} 16. Rad1 {[%clk 0:02:43]}  Rc8 {[%clk 0:01:54]} 17. Nxb5 {[%clk 0:02:43]}  axb5 {[%clk 0:01:54]} 18. Bxb5 {[%clk 0:02:44]}  Bc6 {[%clk 0:01:53]} 19. Bxc6 {[%clk 0:02:44]}  Rxc6 {[%clk 0:01:51]} 20. c3 {[%clk 0:02:42]}  Nc8 {[%clk 0:01:50]} 21. Bg3 {[%clk 0:02:42]}  e5 {[%clk 0:01:48]} 22. Nd2 {[%clk 0:02:42]}  Ndb6 {[%clk 0:01:43]} 23. f3 {[%clk 0:02:40]}  O-O {[%clk 0:01:41]} 24. Bf2 {[%clk 0:02:40]}  Ne7 {[%clk 0:01:38]} 25. Rfe1 {[%clk 0:02:34]}  Rb8 {[%clk 0:01:37]} 26. Nb3 {[%clk 0:02:34]}  Nc4 {[%clk 0:01:36]} 27. Nxc5 {[%clk 0:02:34]}  Rxb2 {[%clk 0:01:33]} 28. Nd3 {[%clk 0:02:32]}  Rc2 {[%clk 0:01:31]} 29. Nb4 {[%clk 0:02:32]}  Rxc3 {[%clk 0:01:15]} 30. Nxc6 {[%clk 0:02:31]}  Nxc6 {[%clk 0:01:14]} 31. Rc1 {[%clk 0:02:31]}  Rxc1 {[%clk 0:01:09]} 32. Rxc1 {[%clk 0:02:32]}  N6a5 {[%clk 0:01:08]} 33. Be1 {[%clk 0:02:32]}  Bf8 {[%clk 0:01:08]} 34. Bxa5 {[%clk 0:02:24]}  Nxa5 {[%clk 0:01:07]} 35. a4 {[%clk 0:02:24]}  Nb3 {[%clk 0:01:02]} 36. Rc8 {[%clk 0:02:24]}  Kg7 {[%clk 0:01:01]} 37. Kf1 {[%clk 0:02:24]}  Bc5 {[%clk 0:00:46]} 38. Ke2 {[%clk 0:02:23]}  Bd4 {[%clk 0:00:45]} 39. Rb8 {[%clk 0:02:18]}  Bc3 {[%clk 0:00:42]} 40. Rxb3 {[%clk 0:02:17]}  Ba5 {[%clk 0:00:39]} 41. Rb5 {[%clk 0:02:17]}  Bc3 {[%clk 0:00:39]} 42. a5 {[%clk 0:02:17]}  Bd4 {[%clk 0:00:38]} 43. a6 {[%clk 0:02:17]}  Kf8 {[%clk 0:00:38]} 44. Kd3 {[%clk 0:02:18]}  Ke7 {[%clk 0:00:38]} 45. Kc4 {[%clk 0:02:17]}  Kd6 {[%clk 0:00:38]} 46. Rb7 {[%clk 0:02:17]}  f5 {[%clk 0:00:37]} 47. exf5 {[%clk 0:02:17]}  h5 {[%clk 0:00:35]} 48. Rh7 {[%clk 0:02:17]}  Kc6 {[%clk 0:00:35]} 49. Rxh5 {[%clk 0:02:17]}  Kb6 {[%clk 0:00:35]} 50. Rh6+ {[%clk 0:02:17]}  Ka7 {[%clk 0:00:35]} 51. f6 {[%clk 0:02:17]}  e4 {[%clk 0:00:35]} 52. fxe4 {[%clk 0:02:17]}  Be3 {[%clk 0:00:35]} 53. f7 {[%clk 0:02:17]}  Bc5 {[%clk 0:00:33]} 54. Kxc5 {[%clk 0:02:16]}  g4 {[%clk 0:00:34]} 55. g3 {[%clk 0:02:16]}  Ka8 {[%clk 0:00:22]} 56. Kb6 {[%clk 0:02:16]}  Kb8 {[%clk 0:00:22]} 57. Rh8# {[%clk 0:02:16]} 1-0


[Site "https://www.chess.com"]

[Event "Titled Tuesday Blitz July 11 Early 2023"]
[White "MunichMouse"]
[Black "Andreev, Konstantin"]
[BlackFideId "24239305"]
[WhiteElo "2295"]
[BlackElo "2576"]
[Result "0-1"]
[Round "1"]
[TimeControl "180+2"]
[Date "2023.07.11"]
[WhiteClock "0:00:13"]
[BlackClock "0:00:04"]
[Board "163"]

1. d4 {[%clk 0:03:00]}  Nf6 {[%clk 0:02:59]} 2. c4 {[%clk 0:03:00]}  e6 {[%clk 0:02:59]} 3. Nf3 {[%clk 0:03:00]}  d5 {[%clk 0:02:58]} 4. g3 {[%clk 0:03:00]}  Bb4+ {[%clk 0:02:58]} 5. Bd2 {[%clk 0:02:59]}  a5 {[%clk 0:02:57]} 6. a3 {[%clk 0:02:58]}  Be7 {[%clk 0:02:54]} 7. Nc3 {[%clk 0:02:57]}  O-O {[%clk 0:02:53]} 8. cxd5 {[%clk 0:02:55]}  exd5 {[%clk 0:02:52]} 9. Bg2 {[%clk 0:02:56]}  c6 {[%clk 0:02:51]} 10. O-O {[%clk 0:02:56]}  h6 {[%clk 0:02:49]} 11. e4 {[%clk 0:02:56]}  dxe4 {[%clk 0:02:43]} 12. Ne5 {[%clk 0:02:53]}  Qxd4 {[%clk 0:02:40]} 13. Bf4 {[%clk 0:02:53]}  Qxd1 {[%clk 0:02:38]} 14. Raxd1 {[%clk 0:02:52]}  Bf5 {[%clk 0:02:33]} 15. Rfe1 {[%clk 0:02:50]}  Nbd7 {[%clk 0:02:18]} 16. Nxd7 {[%clk 0:02:48]}  Nxd7 {[%clk 0:02:19]} 17. Nxe4 {[%clk 0:02:45]}  Rfe8 {[%clk 0:02:12]} 18. h3 {[%clk 0:02:04]}  Nc5 {[%clk 0:02:03]} 19. Nd6 {[%clk 0:01:47]}  Bxd6 {[%clk 0:02:00]} 20. Rxe8+ {[%clk 0:01:40]}  Rxe8 {[%clk 0:02:01]} 21. Bxd6 {[%clk 0:01:40]}  Nd3 {[%clk 0:01:55]} 22. g4 {[%clk 0:01:34]}  Bg6 {[%clk 0:01:53]} 23. Rd2 {[%clk 0:01:29]}  Re1+ {[%clk 0:01:51]} 24. Kh2 {[%clk 0:01:29]}  Rb1 {[%clk 0:01:42]} 25. b4 {[%clk 0:01:08]}  axb4 {[%clk 0:01:38]} 26. axb4 {[%clk 0:01:09]}  Nxb4 {[%clk 0:01:37]} 27. f4 {[%clk 0:01:09]}  f5 {[%clk 0:01:33]} 28. Be5 {[%clk 0:01:02]}  fxg4 {[%clk 0:01:05]} 29. Rd8+ {[%clk 0:00:54]}  Kf7 {[%clk 0:00:48]} 30. Rd7+ {[%clk 0:00:53]}  Ke6 {[%clk 0:00:47]} 31. Rxg7 {[%clk 0:00:53]}  Bd3 {[%clk 0:00:45]} 32. Rxb7 {[%clk 0:00:42]}  gxh3 {[%clk 0:00:40]} 33. Bxh3+ {[%clk 0:00:35]}  Kd5 {[%clk 0:00:39]} 34. Rd7+ {[%clk 0:00:22]}  Kc4 {[%clk 0:00:30]} 35. Rd4+ {[%clk 0:00:19]}  Kc5 {[%clk 0:00:30]} 36. Rd6 {[%clk 0:00:20]}  Nd5 {[%clk 0:00:28]} 37. Rxh6 {[%clk 0:00:19]}  Be4 {[%clk 0:00:26]} 38. Kg3 {[%clk 0:00:15]}  Ne3 {[%clk 0:00:21]} 39. Bd7 {[%clk 0:00:09]}  Rf1 {[%clk 0:00:18]} 40. Rh2 {[%clk 0:00:07]}  Rf3+ {[%clk 0:00:18]} 41. Kh4 {[%clk 0:00:08]}  Nd5 {[%clk 0:00:16]} 42. Kg5 {[%clk 0:00:07]}  Rg3+ {[%clk 0:00:15]} 43. Kh6 {[%clk 0:00:06]}  Rg6+ {[%clk 0:00:14]} 44. Kh5 {[%clk 0:00:06]}  Rg8 {[%clk 0:00:10]} 45. f5 {[%clk 0:00:06]}  Ne3 {[%clk 0:00:09]} 46. Rf2 {[%clk 0:00:04]}  Ng4 {[%clk 0:00:07]} 47. f6 {[%clk 0:00:04]}  Nxf2 {[%clk 0:00:07]} 48. f7 {[%clk 0:00:04]}  Rf8 {[%clk 0:00:07]} 49. Be6 {[%clk 0:00:04]}  Bd5 {[%clk 0:00:06]} 50. Bg7 {[%clk 0:00:03]}  Rxf7 {[%clk 0:00:06]} 51. Bxf7 {[%clk 0:00:03]}  Bxf7+ {[%clk 0:00:07]} 52. Kg5 {[%clk 0:00:03]}  Ne4+ {[%clk 0:00:06]} 53. Kf4 {[%clk 0:00:04]}  Nd6 {[%clk 0:00:06]} 54. Ke3 {[%clk 0:00:05]}  Bd5 {[%clk 0:00:06]} 55. Bd4+ {[%clk 0:00:04]}  Kc4 {[%clk 0:00:06]} 56. Bf6 {[%clk 0:00:04]}  Nf5+ {[%clk 0:00:06]} 57. Kf4 {[%clk 0:00:03]}  Nd4 {[%clk 0:00:07]} 58. Ke5 {[%clk 0:00:03]}  c5 {[%clk 0:00:07]} 59. Be7 {[%clk 0:00:03]}  Nb5 {[%clk 0:00:06]} 60. Bxc5 {[%clk 0:00:03]}  Kxc5 {[%clk 0:00:07]} 61. Kf4 {[%clk 0:00:03]}  Nd4 {[%clk 0:00:08]} 62. Ke5 {[%clk 0:00:03]}  Nc6+ {[%clk 0:00:08]} 63. Kf4 {[%clk 0:00:04]}  Kd4 {[%clk 0:00:09]} 64. Kf5 {[%clk 0:00:04]}  Be4+ {[%clk 0:00:09]} 65. Kf6 {[%clk 0:00:04]}  Ne5 {[%clk 0:00:09]} 66. Ke6 {[%clk 0:00:04]}  Bd5+ {[%clk 0:00:09]} 67. Kf6 {[%clk 0:00:05]}  Ke4 {[%clk 0:00:08]} 68. Kg5 {[%clk 0:00:05]}  Nd7 {[%clk 0:00:07]} 69. Kg6 {[%clk 0:00:04]}  Be6 {[%clk 0:00:07]} 70. Kg7 {[%clk 0:00:04]}  Ke5 {[%clk 0:00:08]} 71. Kg6 {[%clk 0:00:04]}  Kd6 {[%clk 0:00:04]} 72. Kg5 {[%clk 0:00:05]}  Ke5 {[%clk 0:00:04]} 73. Kg6 {[%clk 0:00:05]}  Nf6 {[%clk 0:00:04]} 74. Kg5 {[%clk 0:00:05]}  Bf5 {[%clk 0:00:03]} 75. Kh6 {[%clk 0:00:05]}  Ne4 {[%clk 0:00:01]} 76. Kg7 {[%clk 0:00:05]}  Ke6 {[%clk 0:00:02]} 77. Kh6 {[%clk 0:00:06]}  Nf6 {[%clk 0:00:02]} 78. Kg7 {[%clk 0:00:06]}  Be4 {[%clk 0:00:02]} 79. Kf8 {[%clk 0:00:06]}  Nd5 {[%clk 0:00:03]} 80. Kg7 {[%clk 0:00:06]}  Bf5 {[%clk 0:00:03]} 81. Kf8 {[%clk 0:00:07]}  Kf6 {[%clk 0:00:03]} 82. Kg8 {[%clk 0:00:07]}  Be6+ {[%clk 0:00:03]} 83. Kh8 {[%clk 0:00:08]}  Ne7 {[%clk 0:00:03]} 84. Kh7 {[%clk 0:00:08]}  Nf5 {[%clk 0:00:03]} 85. Kh8 {[%clk 0:00:09]}  Ng7 {[%clk 0:00:03]} 86. Kh7 {[%clk 0:00:09]}  Bf7 {[%clk 0:00:03]} 87. Kh8 {[%clk 0:00:10]}  Ke6 {[%clk 0:00:03]} 88. Kh7 {[%clk 0:00:10]}  Kf6 {[%clk 0:00:03]} 89. Kh8 {[%clk 0:00:11]}  Nf5 {[%clk 0:00:04]} 90. Kh7 {[%clk 0:00:11]}  Ne7 {[%clk 0:00:03]} 91. Kh8 {[%clk 0:00:11]}  Be6 {[%clk 0:00:03]} 92. Kh7 {[%clk 0:00:11]}  Kf7 {[%clk 0:00:03]} 93. Kh8 {[%clk 0:00:12]}  Ng8 {[%clk 0:00:04]} 94. Kh7 {[%clk 0:00:12]}  Ne7 {[%clk 0:00:04]} 95. Kh8 {[%clk 0:00:12]}  Kf8 {[%clk 0:00:04]} 96. Kh7 {[%clk 0:00:12]}  Bg8+ {[%clk 0:00:04]} 97. Kh8 {[%clk 0:00:13]}  Ng6# {[%clk 0:00:04]} 0-1


[Site "https://www.chess.com"]

[Event "Titled Tuesday Blitz July 11 Early 2023"]
[White "Sebag, Marie"]
[Black "Balint, Vilmos"]
[WhiteFideId "617822"]
[BlackFideId "718050"]
[WhiteElo "2575"]
[BlackElo "2265"]
[Result "0-1"]
[Round "1"]
[TimeControl "180+2"]
[Date "2023.07.11"]
[WhiteClock "0:00:14"]
[BlackClock "0:01:05"]
[Board "166"]

1. c4 {[%clk 0:02:48]}  f5 {[%clk 0:02:58]} 2. Nc3 {[%clk 0:02:46]}  Nf6 {[%clk 0:02:58]} 3. g3 {[%clk 0:02:46]}  g6 {[%clk 0:02:59]} 4. Bg2 {[%clk 0:02:47]}  Bg7 {[%clk 0:02:59]} 5. d3 {[%clk 0:02:47]}  c5 {[%clk 0:02:57]} 6. e3 {[%clk 0:02:47]}  O-O {[%clk 0:02:57]} 7. Nge2 {[%clk 0:02:47]}  Nc6 {[%clk 0:02:58]} 8. Rb1 {[%clk 0:02:47]}  b6 {[%clk 0:02:58]} 9. O-O {[%clk 0:02:46]}  Bb7 {[%clk 0:02:58]} 10. a3 {[%clk 0:02:44]}  Na5 {[%clk 0:02:55]} 11. b4 {[%clk 0:02:42]}  Bxg2 {[%clk 0:02:55]} 12. Kxg2 {[%clk 0:02:42]}  Nb7 {[%clk 0:02:54]} 13. Bb2 {[%clk 0:02:30]}  d5 {[%clk 0:02:50]} 14. cxd5 {[%clk 0:02:22]}  Nxd5 {[%clk 0:02:50]} 15. Qb3 {[%clk 0:02:20]}  e6 {[%clk 0:02:51]} 16. e4 {[%clk 0:02:12]}  Nc7 {[%clk 0:02:49]} 17. Rbd1 {[%clk 0:02:11]}  Kh8 {[%clk 0:02:48]} 18. Nf4 {[%clk 0:02:10]}  Qe7 {[%clk 0:02:34]} 19. Rfe1 {[%clk 0:02:09]}  g5 {[%clk 0:02:21]} 20. Nh5 {[%clk 0:02:08]}  Bd4 {[%clk 0:02:21]} 21. Ne2 {[%clk 0:01:57]}  Rad8 {[%clk 0:01:54]} 22. Nxd4 {[%clk 0:01:55]}  cxd4 {[%clk 0:01:55]} 23. exf5 {[%clk 0:01:52]}  Rxf5 {[%clk 0:01:53]} 24. Re4 {[%clk 0:01:50]}  Qf7 {[%clk 0:01:51]} 25. Rd2 {[%clk 0:01:14]}  Rfd5 {[%clk 0:01:31]} 26. g4 {[%clk 0:01:08]}  Nd6 {[%clk 0:01:29]} 27. Rxd4 {[%clk 0:01:06]}  e5 {[%clk 0:01:21]} 28. Rxd5 {[%clk 0:01:05]}  Nxd5 {[%clk 0:01:21]} 29. Bxe5+ {[%clk 0:01:03]}  Kg8 {[%clk 0:01:21]} 30. Qd1 {[%clk 0:00:39]}  Qe6 {[%clk 0:01:10]} 31. d4 {[%clk 0:00:28]}  Nc4 {[%clk 0:01:08]} 32. Rd3 {[%clk 0:00:22]}  Nxe5 {[%clk 0:01:08]} 33. dxe5 {[%clk 0:00:22]}  Qxe5 {[%clk 0:01:09]} 34. Nf6+ {[%clk 0:00:19]}  Qxf6 {[%clk 0:01:06]} 35. Rxd5 {[%clk 0:00:14]}  Qc6 {[%clk 0:01:05]} 0-1


[Site "https://www.chess.com"]